fUSD/lending_fUSD_20240104
["ID","MTS","AMOUNT","RATE_DAILY","PERIOD"]
[310129556,1704378647911,-3000.0,0.0003214,2]
[310129559,1704378647923,-3000.0,0.0003215,2]
[310129561,1704378647934,-3000.0,0.0003216,2]
[310129563,1704378647946,-3000.0,0.0003217,2]
[310129565,1704378647957,-3000.0,0.0003218,2]
[310129568,1704378647968,-3000.0,0.0003219,2]
[310129570,1704378647979,-3000.0,0.000322,2]
[310129572,1704378647990,-3555.948715,0.0003221,2]
[310129574,1704378648001,-624.01,0.00032228,2]
[310129576,1704378648013,-152.01,0.00032274,2]
[310129579,1704378648024,-153.84,0.0003239,2]
[310129581,1704378648035,-624.01,0.00032392,2]
[310129583,1704378648047,-282.97,0.000324,2]
[310129585,1704378648059,-362.66800884,0.00032427,4]
[310129586,1704378648070,-481.20950029,0.00032446,4]
[310129587,1704378648082,-624.01,0.00032556,2]
[310129588,1704378648094,-2851.16267894,0.00032602,4]
[310129590,1704378648105,-247.12265423,0.00032602,10]
[310129592,1704378648116,-624.01,0.00032719,2]
[310129594,1704378648126,-418.0569439,0.00032758,4]
[310129596,1704378648138,-15180.6522,0.00032766,2]
[310129598,1704378648150,-500.0,0.00032766,2]
[310129601,1704378648161,-23053.8746,0.00032766,2]
[310129603,1704378648173,-362.66800884,0.00032771,4]
[310129605,1704378648184,-1423.13104478,0.00032774,2]
[310129607,1704378648195,-264.60341248,0.00032774,4]
[310129610,1704378648206,-362.25332712,0.00032774,4]
[310129612,1704378648217,-155.0,0.00032774,4]
[310129614,1704378648229,-252.05290269,0.00032774,4]
[310129616,1704378648240,-155.0,0.00032774,4]
[310129618,1704378648251,-278.46473707,0.00032774,4]
[310129621,1704378648262,-190.37542036,0.00032774,4]
[310129623,1704378648273,-359.7757626,0.00032774,4]
[310129625,1704378648284,-262.19433483,0.00032774,4]
[310129627,1704378648295,-383.17732311,0.00032774,4]
[310129630,1704378648309,-3313.16034249,0.00032774,4]
[310129632,1704378648321,-155.0,0.00032774,2]
[310129634,1704378648331,-526.50745505,0.00032774,2]
[310129636,1704378648343,-155.20260064,0.00032774,4]
[310129639,1704378648354,-155.0,0.00032774,4]
[310129641,1704378648365,-80606.76489243,0.00032774,4]
[310129645,1704378648391,-16639.1408386,0.00032774,4]
[310129647,1704378648405,-5208.30582001,0.00032774,4]
[310129650,1704378648419,-211.61570131,0.00032774,4]
[310129652,1704378648431,-523.45917781,0.00032774,4]
[310129654,1704378648442,-197.18711785,0.00032774,4]
[310129657,1704378648453,-155.24384049,0.00032774,4]
[310129659,1704378648464,-5084.49796621,0.00032774,4]
[310129661,1704378648474,-232.41391005,0.00032774,4]
[310129663,1704378648485,-198.22161965,0.00032774,4]
[310129665,1704378648496,-366.54090479,0.00032774,4]
[310129667,1704378648507,-161.22618558,0.00032774,4]
[310129670,1704378648517,-6419.41999724,0.00032774,4]
[310129672,1704378648528,-220.55180604,0.00032774,4]
[310129674,1704378648539,-287.39218675,0.00032774,4]
[310129676,1704378648551,-7755.86019392,0.00032774,4]
[310129678,1704378648562,-433.38738257,0.00032774,4]
[310129680,1704378648574,-3481.59030714,0.00032774,4]
[310129687,1704378648623,-386.7855967,0.00032774,4]
[310129689,1704378648637,-284.02500002,0.00032774,4]
[310129692,1704378648650,-1521.846513,0.00032774,4]
[310129694,1704378648660,-4757.17411556,0.00032774,4]
[310129696,1704378648674,-459.91149139,0.00032774,4]
[310130528,1704379082084,3000.0,0.0003,120]
[310130552,1704379832204,-526.32126341,0.00026994,2]
[310130553,1704379832220,-375.77532929,0.00026995,2]
[310130554,1704379832230,-250.0,0.00027,3]
[310130555,1704379832241,-250.0,0.000274,2]
[310130556,1704379832251,-390.23,0.00028871,2]
[310130557,1704379832262,-300.0,0.00029,3]
[310130558,1704379832272,-160.42019019,0.000298,2]
[310130559,1704379832283,-1782.53106294,0.00029896,2]
[310130560,1704379832295,-824.0,0.00029896,2]
[310130561,1704379832321,-5386.3056,0.00029896,2]
[310130562,1704379832333,-4457.49819672,0.00029896,2]
[310130563,1704379832453,-384.0,0.00029896,2]
[310130564,1704379832517,-524.46965776,0.00029896,2]
[310130572,1704379840338,-1397.80997532,0.00029896,2]
[310130573,1704379840348,-538.9225,0.000299,2]
[310130574,1704379840357,-1000.0,0.000299,2]
[310130575,1704379840367,-16395.51223475,0.0003,2]
[310130576,1704379840377,-2000.0,0.0003,2]
[310130577,1704379840386,-155.0,0.0003,2]
[310130578,1704379840396,-190.80062265,0.00030279,4]
[310130579,1704379840406,-206.0,0.00030509,2]
[310130580,1704379840416,-250.0,0.00030749,2]
[310130581,1704379840425,-286.52,0.00030749,2]
[310130582,1704379840435,-240.53,0.0003081,2]
[310130583,1704379840451,-308.1,0.00030811,2]
[310130584,1704379840460,-203.56,0.00030819,2]
[310130585,1704379840470,-507.51,0.00030892,2]
[310130586,1704379840480,-2000.0,0.00031,2]
[310130587,1704379840490,-2729.53,0.00031112,2]
[310130588,1704379840499,-1129.58550091,0.00031135,4]
[310130589,1704379840508,-4040.72217429,0.00031135,2]
[310130590,1704379840517,-390.23,0.00031135,2]
[310130591,1704379840526,-156.86,0.00031139,2]
[310130592,1704379840535,-153.39,0.00031162,2]
[310130593,1704379840545,-492.49,0.0003122,2]
[310130594,1704379840554,-529.218,0.00031258,2]
[310130595,1704379840563,-1257.0,0.00031258,2]
[310130596,1704379840572,-1925.0,0.00031258,2]
[310130597,1704379840581,-595.67,0.00031258,2]
[310130598,1704379840591,-1138.0,0.00031258,2]
[310130599,1704379840601,-750.0,0.00031258,2]
[310130600,1704379840610,-234.0,0.00031258,2]
[310130602,1704379840619,-374.279,0.00031258,2]
[310130604,1704379840628,-428.286,0.00031258,2]
[310130606,1704379840638,-506.0,0.00031258,2]
[310130608,1704379840647,-1275.0907276,0.00031258,2]
[310130609,1704379840669,-543.68032293,0.00031258,2]
[310130610,1704379840763,-358.71,0.00031258,2]
[310130611,1704379840791,-1682.88994947,0.00031258,2]
[310130613,1704379840800,-2893.0,0.00031258,2]
[310130615,1704379840809,-150.0,0.00031258,2]
[310130617,1704379840819,-153.39,0.0003137,2]
[310130618,1704379840828,-4887.96080471,0.000314,2]
[310130621,1704379840840,-4939.77456854,0.000314,2]
[310130623,1704379840849,-165.95,0.00031456,2]
[310130625,1704379840859,-214.77524208,0.00031463,2]
[310130627,1704379840868,-500.0,0.000315,2]
[310130628,1704379840877,-153.39,0.00031578,2]
[310130630,1704379840887,-153.39,0.00031786,2]
[310130632,1704379840897,-240.53,0.00031788,2]
[310130634,1704379840906,-456.66288,0.00031799,2]
[310130636,1704379840915,-4449.02730948,0.000318,2]
[310130672,1704379841681,-7347.97269052,0.000318,2]
[310130673,1704379841691,-3000.0,0.000318,2]
[310130674,1704379841701,-153.39,0.00031993,2]
[310130675,1704379841710,-2000.0,0.00032,2]
[310130676,1704379841720,-150.0,0.00032,2]
[310130677,1704379841729,-162.0,0.00032,2]
[310130678,1704379841738,-150.0,0.0003215,2]
[310130679,1704379841747,-155.0,0.0003215,2]
[310130680,1704379841756,-179.82017932,0.00032155,4]
[310130681,1704379841766,-5246.0,0.00032156,2]
[310130682,1704379841775,-153.39,0.00032201,2]
[310130683,1704379841785,-500.0,0.00032386,2]
[310130684,1704379841794,-153.39,0.00032409,2]
[310130685,1704379841803,-888.55408846,0.00032468,2]
[310130686,1704379841813,-153.39,0.00032617,2]
[310130687,1704379841823,-642.39,0.00032666,10]
[310130688,1704379841832,-3723.0116,0.00032675,2]
[310130689,1704379841842,-5279.7329,0.00032676,2]
[310130690,1704379841853,-36117.8949186,0.00032763,3]
[310130691,1704379841863,-28894.3159349,0.00032764,3]
[310130692,1704379841873,-7223.57898372,0.00032765,3]
[310130693,1704379841882,-65012.2108535,0.00032766,3]
[310130694,1704379841892,-28894.3159349,0.00032766,3]
[310130695,1704379841902,-240.53,0.00032767,2]
[310130696,1704379841911,-289972.77706896,0.00032773,4]
[310130697,1704379841920,-259.87814878,0.00032773,2]
[310130700,1704379841931,-19092.13380533,0.00032774,4]
[310130701,1704379841941,-249.43117852,0.00032774,4]
[310130703,1704379841950,-360.75377428,0.00032774,2]
[310130704,1704379841959,-259.9122725,0.00032774,2]
[310130706,1704379841968,-17710.40670226,0.00032774,2]
[310130709,1704379841978,-410.3307715,0.00032774,2]
[310130711,1704379841987,-687.97415573,0.00032774,2]
[310130712,1704379841997,-156.00513549,0.00032774,2]
[310130713,1704379842007,-1302.08978084,0.00032774,2]
[310130714,1704379842017,-310.0,0.00032774,2]
[310130715,1704379842027,-460.33626055,0.00032774,2]
[310130716,1704379842044,-8392.75217118,0.00032774,4]
[310130717,1704379842060,-674.80921,0.00032774,2]
[310130718,1704379842075,-161.5,0.00032775,2]
[310130719,1704379842087,-161.5,0.00032775,2]
[310130720,1704379842101,-161.5,0.00032775,2]
[310130721,1704379842115,-161.5,0.00032775,2]
[310130722,1704379842129,-430.8306,0.00032775,2]
[310130723,1704379842144,-156.37579624,0.00032775,7]
[310130724,1704379842159,-11637.824194,0.00032775,2]
[310130725,1704379842171,-285.70075363,0.00032775,2]
[310130726,1704379842186,-133846.3978,0.00032776,2]
[310130727,1704379842200,-55555.0,0.00032776,3]
[310130728,1704379842213,-151.69064531,0.00032776,2]
[310130729,1704379842227,-529.94868826,0.00032776,4]
[310130730,1704379842244,-187.96847186,0.00032776,2]
[310130731,1704379842255,-184.41460374,0.00032776,2]
[310130732,1704379842269,-397.53608247,0.00032776,2]
[310130733,1704379842283,-1133.26904581,0.00032776,2]
[310130734,1704379842298,-7223.57898372,0.0003279,3]
[310130735,1704379842311,-11077.33422592,0.000328,2]
[310130736,1704379842325,-3000.0,0.000328,2]
[310130737,1704379842339,-14447.1579674,0.00032809,3]
[310130738,1704379842353,-16102.18301658,0.00032819,2]
[310130739,1704379842368,-4890.42084288,0.00032819,2]
[310130740,1704379842383,-9650.9122724,0.00032819,2]
[310130741,1704379842398,-153.39,0.00032824,2]
[310130742,1704379842410,-72235.7898372,0.00032866,3]
[310130743,1704379842421,-155.66407529,0.00032874,4]
[310130744,1704379842434,-5000.0,0.00032875,3]
[310130745,1704379842448,-150.0,0.00032875,2]
[310130746,1704379842461,-421.7871991,0.00032876,4]
[310130747,1704379842476,-425.95346144,0.00032876,2]
[310130748,1704379842489,-282.65083682,0.00032876,2]
[310130749,1704379842501,-500.0,0.00032876,2]
[310130750,1704379842512,-505.4101706,0.00032876,2]
[310130751,1704379842524,-500.0,0.00032876,2]
[310130752,1704379842540,-334.68111021,0.00032876,2]
[310130753,1704379842552,-500.0,0.00032876,2]
[310130754,1704379842565,-500.73755477,0.00032876,2]
[310130755,1704379842578,-971.26,0.00032876,2]
[310130756,1704379842590,-500.0,0.00032876,2]
[310130757,1704379842602,-500.0,0.00032876,2]
[310130758,1704379842614,-500.0,0.00032876,2]
[310130759,1704379842626,-500.0,0.00032876,2]
[310130760,1704379842638,-500.0,0.00032876,2]
[310130761,1704379842651,-500.0,0.00032876,2]
[310130762,1704379842663,-500.0,0.00032876,2]
[310130763,1704379842674,-534.24501301,0.00032876,2]
[310130764,1704379842687,-500.0,0.00032876,2]
[310130765,1704379842701,-500.0,0.00032876,2]
[310130766,1704379842713,-500.0,0.00032876,2]
[310130767,1704379842726,-500.0,0.00032876,2]
[310130768,1704379842738,-500.0,0.00032876,2]
[310130769,1704379842751,-500.0,0.00032876,2]
[310130770,1704379842763,-1170.39,0.00032876,2]
[310130771,1704379842775,-500.0,0.00032876,2]
[310130772,1704379842787,-500.0,0.00032876,2]
[310130773,1704379842799,-500.0,0.00032876,2]
[310130774,1704379842811,-500.0,0.00032876,2]
[310130775,1704379842823,-1526.91216362,0.00032876,2]
[310130776,1704379842835,-500.0,0.00032876,2]
[310130777,1704379842847,-500.0,0.00032876,2]
[310130778,1704379842859,-500.0,0.00032876,2]
[310130779,1704379842871,-500.0,0.00032876,2]
[310130780,1704379842884,-527.98429231,0.00032876,2]
[310130781,1704379842895,-500.0,0.00032876,2]
[310130782,1704379842908,-500.0,0.00032876,2]
[310130783,1704379842920,-536.34,0.00032876,2]
[310130784,1704379842932,-500.0,0.00032876,2]
[310130785,1704379842945,-500.0,0.00032876,2]
[310130786,1704379842956,-500.0,0.00032876,2]
[310130787,1704379842969,-500.0,0.00032876,2]
[310130788,1704379842981,-539.85588893,0.00032876,2]
[310130789,1704379842994,-500.0,0.00032876,2]
[310130790,1704379843006,-500.0,0.00032876,2]
[310130791,1704379843018,-636.67,0.00032876,2]
[310130794,1704379843031,-500.0,0.00032876,2]
[310130795,1704379843044,-500.0,0.00032876,2]
[310130796,1704379843056,-500.0,0.00032876,2]
[310130797,1704379843070,-500.0,0.00032876,2]
[310130798,1704379843081,-500.0,0.00032876,2]
[310130799,1704379843093,-500.0,0.00032876,2]
[310130800,1704379843106,-500.0,0.00032876,2]
[310130801,1704379843118,-500.0,0.00032876,2]
[310130802,1704379843131,-500.0,0.00032876,2]
[310130803,1704379843144,-508.50231238,0.00032876,2]
[310130804,1704379843157,-500.0,0.00032876,2]
[310130805,1704379843169,-500.0,0.00032876,2]
[310130806,1704379843181,-211.54230483,0.00032876,2]
[310130808,1704379843193,-519.11363648,0.00032876,2]
[310130809,1704379843205,-528.68474066,0.00032876,2]
[310130810,1704379843221,-513.42718112,0.00032876,2]
[310130811,1704379843233,-560.26788249,0.00032876,2]
[310130812,1704379843246,-525.54736517,0.00032876,2]
[310130813,1704379843258,-569.07404274,0.00032876,2]
[310130814,1704379843271,-514.73201001,0.00032876,2]
[310130815,1704379843283,-500.0,0.00032876,2]
[310130816,1704379843295,-500.0,0.00032876,2]
[310130817,1704379843307,-507.9288501,0.00032876,2]
[310130818,1704379843320,-503.56638884,0.00032876,2]
[310130819,1704379843333,-513.15620546,0.00032876,2]
[310130820,1704379843346,-529.68232028,0.00032876,2]
[310130821,1704379843359,-511.32746617,0.00032876,9]
[310130822,1704379843371,-500.0,0.00032876,2]
[310130823,1704379843383,-500.0,0.00032876,2]
[310130824,1704379843395,-500.0,0.00032876,2]
[310130825,1704379843408,-532.51423001,0.00032876,2]
[310130826,1704379843421,-500.0,0.00032876,2]
[310130827,1704379843433,-559.58,0.00032876,2]
[310130828,1704379843447,-481.58873167,0.00032876,2]
[310130829,1704379843459,-500.0,0.00032876,2]
[310130830,1704379843471,-500.0,0.00032876,2]
[310130831,1704379843483,-517.24209588,0.00032876,2]
[310130832,1704379843495,-512.0542471,0.00032876,2]
[310130833,1704379843507,-500.0,0.00032876,2]
[310130834,1704379843520,-500.0,0.00032876,2]
[310130835,1704379843532,-500.0,0.00032876,2]
[310130836,1704379843543,-638.87278344,0.00032876,2]
[310130837,1704379843556,-500.0,0.00032876,2]
[310130838,1704379843570,-500.0,0.00032876,2]
[310130839,1704379843581,-515.86229806,0.00032876,2]
[310130841,1704379843593,-500.0,0.00032876,2]
[310130842,1704379843604,-529.09587432,0.00032876,2]
[310130843,1704379843616,-500.0,0.00032876,2]
[310130844,1704379843628,-500.0,0.00032876,2]
[310130845,1704379843640,-500.0,0.00032876,2]
[310130846,1704379843651,-500.0,0.00032876,2]
[310130848,1704379843663,-664.67,0.00032876,2]
[310130849,1704379843675,-500.0,0.00032876,2]
[310130850,1704379843687,-634.91311022,0.00032876,2]
[310130851,1704379843701,-500.0,0.00032876,2]
[310130852,1704379843713,-500.0,0.00032876,2]
[310130853,1704379843724,-500.0,0.00032876,2]
[310130854,1704379843737,-500.0,0.00032876,2]
[310130855,1704379843749,-1268.46,0.00032876,2]
[310130856,1704379843762,-500.0,0.00032876,2]
[310130857,1704379843775,-633.15382349,0.00032876,2]
[310130858,1704379843786,-500.0,0.00032876,2]
[310130859,1704379843798,-567.6,0.00032876,2]
[310130860,1704379843809,-500.0,0.00032876,2]
[310130861,1704379843821,-500.0,0.00032876,2]
[310130862,1704379843834,-500.0,0.00032876,2]
[310130863,1704379843846,-500.0,0.00032876,2]
[310130864,1704379843858,-502.29651347,0.00032876,2]
[310130865,1704379843870,-500.0,0.00032876,2]
[310130866,1704379843882,-500.0,0.00032876,2]
[310130867,1704379843894,-531.93144628,0.00032876,2]
[310130868,1704379843905,-500.0,0.00032876,2]
[310130869,1704379843917,-500.0,0.00032876,2]
[310130870,1704379843929,-477.46371896,0.00032876,2]
[310130871,1704379843942,-500.0,0.00032876,2]
[310130872,1704379843953,-500.0,0.00032876,2]
[310130873,1704379843965,-500.0,0.00032876,2]
[310130874,1704379843976,-539.05,0.00032876,2]
[310130875,1704379843988,-500.0,0.00032876,2]
[310130876,1704379844000,-500.92434372,0.00032876,2]
[310130877,1704379844011,-500.0,0.00032876,2]
[310130878,1704379844023,-500.0,0.00032876,2]
[310130879,1704379844035,-500.0,0.00032876,2]
[310130880,1704379844050,-500.0,0.00032876,2]
[310130881,1704379844061,-500.0,0.00032876,2]
[310130882,1704379844073,-500.0,0.00032876,2]
[310130883,1704379844084,-500.0,0.00032876,2]
[310130884,1704379844096,-500.0,0.00032876,2]
[310130885,1704379844109,-500.0,0.00032876,2]
[310130886,1704379844120,-500.0,0.00032876,2]
[310130887,1704379844132,-636.24487245,0.00032876,2]
[310130888,1704379844144,-500.0,0.00032876,2]
[310130889,1704379844155,-500.0,0.00032876,2]
[310130890,1704379844166,-500.0,0.00032876,2]
[310130891,1704379844178,-523.36402818,0.00032876,2]
[310130892,1704379844190,-500.0,0.00032876,2]
[310130893,1704379844202,-528.14511972,0.00032876,2]
[310130894,1704379844213,-500.0,0.00032876,2]
[310130895,1704379844228,-500.0,0.00032876,2]
[310130896,1704379844239,-500.0,0.00032876,2]
[310130897,1704379844250,-500.0,0.00032876,2]
[310130898,1704379844261,-500.0,0.00032876,2]
[310130899,1704379844273,-500.0,0.00032876,2]
[310130900,1704379844284,-500.0,0.00032876,2]
[310130901,1704379844295,-500.0,0.00032876,2]
[310130902,1704379844307,-508.04878773,0.00032876,2]
[310130903,1704379844319,-500.0,0.00032876,2]
[310130904,1704379844331,-500.0,0.00032876,2]
[310130905,1704379844343,-508.48229772,0.00032876,2]
[310130906,1704379844355,-500.0,0.00032876,2]
[310130907,1704379844367,-500.0,0.00032876,2]
[310130908,1704379844378,-500.0,0.00032876,2]
[310130909,1704379844389,-500.0,0.00032876,2]
[310130910,1704379844401,-370.68503985,0.00032876,2]
[310130911,1704379844413,-500.0,0.00032876,2]
[310130912,1704379844423,-839.9,0.00032876,2]
[310130913,1704379844433,-500.0,0.00032876,2]
[310130914,1704379844445,-500.0,0.00032876,2]
[310130915,1704379844455,-381.19673659,0.00032876,2]
[310130916,1704379844824,-500.0,0.00032876,2]
[310130917,1704379844852,-500.0,0.00032876,2]
[310130918,1704379844871,-1234.04,0.00032876,2]
[310130919,1704379844888,-519.16167689,0.00032876,2]
[310130920,1704379844898,-1658.72,0.00032876,2]
[310130921,1704379844907,-500.0,0.00032876,2]
[310130922,1704379844917,-500.0,0.00032876,2]
[310130923,1704379844927,-500.0,0.00032876,2]
[310130924,1704379844936,-507.96819611,0.00032876,2]
[310130925,1704379844947,-500.0,0.00032876,2]
[310130926,1704379844956,-500.0,0.00032876,2]
[310130927,1704379844965,-500.0,0.00032876,2]
[310130928,1704379844975,-500.0,0.00032876,2]
[310130929,1704379844985,-500.0,0.00032876,2]
[310130930,1704379844996,-500.0,0.00032876,2]
[310130931,1704379845006,-540.10693418,0.00032876,2]
[310130932,1704379845015,-548.38,0.00032876,2]
[310130933,1704379845025,-500.0,0.00032876,2]
[310130934,1704379845035,-613.09345862,0.00032876,2]
[310130935,1704379845046,-500.0,0.00032876,2]
[310130936,1704379845055,-500.0,0.00032876,2]
[310130937,1704379845064,-500.0,0.00032876,2]
[310130938,1704379845073,-500.0,0.00032876,2]
[310130939,1704379845083,-500.0,0.00032876,2]
[310130940,1704379845092,-569.64,0.00032876,2]
[310130941,1704379845102,-552.28,0.00032876,2]
[310130942,1704379845111,-512.92,0.00032876,2]
[310130943,1704379845120,-500.0,0.00032876,2]
[310130944,1704379845130,-1150.58,0.00032876,2]
[310130945,1704379845140,-500.0,0.00032876,2]
[310130946,1704379845149,-500.0,0.00032876,2]
[310130947,1704379845158,-167.77855154,0.00032876,2]
[310130948,1704379845168,-500.0,0.00032876,2]
[310130949,1704379845177,-500.0,0.00032876,2]
[310130950,1704379845186,-500.0,0.00032876,2]
[310130951,1704379845197,-500.0,0.00032876,2]
[310130952,1704379845206,-500.0,0.00032876,2]
[310130953,1704379845218,-500.0,0.00032876,2]
[310130954,1704379845228,-823.9,0.00032876,2]
[310130955,1704379845238,-663.69,0.00032876,2]
[310130956,1704379845247,-500.0,0.00032876,2]
[310130957,1704379845257,-697.92,0.00032876,2]
[310130958,1704379845267,-480.0,0.00032876,2]
[310130959,1704379845276,-500.0,0.00032876,2]
[310130960,1704379845286,-804.76,0.00032876,2]
[310130961,1704379845294,-500.0,0.00032876,2]
[310130962,1704379845303,-500.0,0.00032876,2]
[310130963,1704379845312,-1477.52,0.00032876,2]
[310130964,1704379845322,-500.0,0.00032876,2]
[310130965,1704379845331,-500.0,0.00032876,2]
[310130966,1704379845339,-719.32,0.00032876,2]
[310130967,1704379845349,-791.14,0.00032876,2]
[310130968,1704379845358,-500.0,0.00032876,2]
[310130969,1704379845367,-500.0,0.00032876,2]
[310130970,1704379845377,-1714.8,0.00032876,2]
[310130971,1704379845386,-500.0,0.00032876,2]
[310130972,1704379845396,-504.83,0.00032876,2]
[310130973,1704379845405,-500.0,0.00032876,2]
[310130974,1704379845414,-500.0,0.00032876,2]
[310130975,1704379845423,-500.0,0.00032876,2]
[310130976,1704379845434,-500.0,0.00032876,2]
[310130977,1704379845443,-500.0,0.00032876,2]
[310130978,1704379845452,-500.0,0.00032876,2]
[310130979,1704379845462,-500.0,0.00032876,2]
[310130980,1704379845471,-500.0,0.00032876,2]
[310130981,1704379845481,-957.5,0.00032876,2]
[310130982,1704379845491,-500.0,0.00032876,2]
[310130983,1704379845500,-500.0,0.00032876,2]
[310130984,1704379845510,-521.72350682,0.00032876,2]
[310130985,1704379845518,-500.0,0.00032876,2]
[310130986,1704379845527,-500.0,0.00032876,2]
[310130987,1704379845536,-500.0,0.00032876,2]
[310130988,1704379845546,-500.0,0.00032876,2]
[310130989,1704379845555,-500.0,0.00032876,2]
[310130990,1704379845564,-500.0,0.00032876,2]
[310130991,1704379845574,-500.0,0.00032876,2]
[310130992,1704379845583,-500.0,0.00032876,2]
[310130993,1704379845592,-500.0,0.00032876,2]
[310130994,1704379845602,-2008.27,0.00032876,2]
[310130995,1704379845611,-500.0,0.00032876,2]
[310130996,1704379845621,-500.0,0.00032876,2]
[310130997,1704379845631,-500.0,0.00032876,2]
[310130998,1704379845640,-571.34,0.00032876,2]
[310130999,1704379845650,-500.0,0.00032876,2]
[310131000,1704379845659,-500.0,0.00032876,2]
[310131001,1704379845669,-500.0,0.00032876,2]
[310131002,1704379845678,-500.0,0.00032876,2]
[310131003,1704379845687,-500.0,0.00032876,2]
[310131004,1704379845698,-765.5,0.00032876,2]
[310131005,1704379845707,-1029.06,0.00032876,2]
[310131006,1704379845717,-631.66,0.00032876,2]
[310131007,1704379845726,-500.0,0.00032876,2]
[310131008,1704379845736,-500.0,0.00032876,2]
[310131009,1704379845746,-500.0,0.00032876,2]
[310131010,1704379845755,-500.0,0.00032876,2]
[310131011,1704379845765,-500.0,0.00032876,2]
[310131012,1704379845774,-500.0,0.00032876,2]
[310131013,1704379845784,-733.19,0.00032876,2]
[310131014,1704379845793,-783.89,0.00032876,2]
[310131015,1704379845802,-500.0,0.00032876,2]
[310131016,1704379845811,-500.0,0.00032876,2]
[310131017,1704379845821,-1116.15,0.00032876,2]
[310131018,1704379845830,-500.0,0.00032876,2]
[310131019,1704379845839,-500.0,0.00032876,2]
[310131020,1704379845849,-251.35654495,0.00032876,2]
[310131021,1704379845858,-500.0,0.00032876,2]
[310131022,1704379845868,-500.0,0.00032876,2]
[310131023,1704379845877,-500.0,0.00032876,2]
[310131024,1704379845888,-500.0,0.00032876,2]
[310131025,1704379845897,-500.0,0.00032876,2]
[310131026,1704379845907,-812.07,0.00032876,2]
[310131027,1704379845917,-500.0,0.00032876,2]
[310131028,1704379845926,-525.8060503,0.00032876,2]
[310131029,1704379845935,-500.0,0.00032876,2]
[310131031,1704379845946,-500.0,0.00032876,2]
[310131034,1704379845955,-500.0,0.00032876,2]
[310131035,1704379845964,-500.0,0.00032876,2]
[310131036,1704379845974,-500.0,0.00032876,2]
[310131037,1704379845984,-500.0,0.00032876,2]
[310131038,1704379845994,-500.0,0.00032876,2]
[310131039,1704379846004,-500.0,0.00032876,2]
[310131040,1704379846014,-1411.3,0.00032876,2]
[310131041,1704379846024,-1047.26,0.00032876,2]
[310131042,1704379846033,-500.0,0.00032876,2]
[310131043,1704379846043,-894.07,0.00032876,2]
[310131044,1704379846053,-934.08,0.00032876,2]
[310131045,1704379846062,-500.0,0.00032876,2]
[310131046,1704379846072,-846.07,0.00032876,2]
[310131047,1704379846081,-500.0,0.00032876,2]
[310131048,1704379846091,-1000.0,0.00032876,2]
[310131050,1704379846100,-1040.25,0.00032876,2]
[310131052,1704379846110,-500.0,0.00032876,2]
[310131054,1704379846119,-507.08743258,0.00032876,2]
[310131056,1704379846129,-500.0,0.00032876,2]
[310131058,1704379846139,-500.0,0.00032876,2]
[310131059,1704379846148,-500.0,0.00032876,2]
[310131060,1704379846158,-500.0,0.00032876,2]
[310131061,1704379846167,-500.0,0.00032876,2]
[310131062,1704379846177,-500.0,0.00032876,2]
[310131063,1704379846187,-2013.59,0.00032876,2]
[310131064,1704379846197,-500.0,0.00032876,2]
[310131065,1704379846206,-2013.59,0.00032876,2]